bitfinex/quotes_SOLUSD_20240622
["timestamp","ask_amount","ask_price","bid_price","bid_amount"]
[1719020915033,9.35,134.12,134.08,7.4578]
[1719020916827,9.35,134.12,134.07,16.8085]
[1719020917215,16.8062,134.12,134.07,16.8085]
[1719020917910,9.35,134.11,134.07,7.4585]
[1719020921433,52.4566,134.15,134.04,15.4641]
[1719020921651,9.35,134.08,134.04,15.4641]
[1719020922013,9.35,134.08,134.04,22.9242]
[1719020924040,9.35,134.08,134.05,7.4598]
[1719020928739,9.35,134.08,134.06,7.4593]
[1719020930942,9.35,134.08,134.04,15.4641]
[1719020931148,9.35,134.05,134.03,7.4606]
[1719020931645,9.35,134.04,134.01,22.6317]
[1719020931839,7.4594,134.06,134.01,22.6317]
[1719020931840,9.35,134.03,134.01,22.6317]
[1719020933142,9.35,134.03,134.02,7.4615]
[1719020937142,9.35,134.03,134.0,7.4624]
[1719020937444,7.4604,134.05,133.99,7.4629]
[1719020937445,9.35,134.01,133.99,7.4629]
[1719020937628,9.35,134.01,133.98,7.4635]
[1719020938348,9.35,134.01,133.99,7.4632]
[1719020940128,9.35,134.0,133.97,7.464]
[1719020940344,9.35,133.99,133.97,7.464]
[1719020940545,9.35,133.99,133.96,7.4648]
[1719020940738,9.35,133.98,133.95,15.1701]
[1719020940934,9.35,133.97,133.95,15.1701]
[1719020941722,9.35,133.97,133.95,22.6352]
[1719020943141,9.35,133.97,133.95,15.1701]
[1719020944951,20.0,134.02,133.95,15.1701]
[1719020945254,9.35,134.01,133.97,7.4638]
[1719020946349,9.35,134.0,133.95,24.5201]
[1719020946531,9.35,133.99,133.95,22.6351]
[1719020947645,9.35,133.99,133.96,7.4647]
[1719020948044,9.35,134.0,133.96,7.4647]
[1719020951064,6.02211228,134.04,133.95,43.1824]
[1719020951255,9.35,134.01,133.96,9.35]
[1719020951442,9.35,134.01,133.96,16.8146]
[1719020951843,9.35,134.01,133.97,7.4642]
[1719020952435,9.35,134.01,133.97,8.95264965]
[1719020953235,7.4608,134.04,133.99,7.4632]
[1719020953440,20.0,134.03,134.0,9.35]
[1719020953655,16.8095,134.06,134.01,16.8118]
[1719020953835,20.0,134.05,134.01,16.8118]
[1719020954961,20.0,134.05,134.01,9.35]
[1719020955158,7.4589,134.07,134.02,16.8112]
[1719020955359,7.4589,134.07,134.03,9.35]
[1719020955952,16.8089,134.07,134.02,16.8112]
[1719020957038,7.4589,134.07,134.02,16.8112]
[1719020957244,7.4589,134.07,134.03,9.35]
[1719020957942,9.35,134.08,134.03,9.35]
[1719020958152,281.61984949,134.1,134.03,8.35]
[1719020958350,36.8081,134.09,134.03,15.8107]
[1719020958558,7.4584,134.08,134.03,15.8107]
[1719020958755,16.8084,134.08,134.03,8.35]
[1719020959362,9.35,134.07,134.02,9.35]
[1719020959577,9.35,134.07,134.03,7.4609]
[1719020959749,16.8084,134.08,134.03,16.8109]
[1719020960264,16.8084,134.08,134.01,0.17]
[1719020960265,16.8067,134.11,134.06,16.8089]
[1719020961095,16.8062,134.12,134.07,9.35]
[1719020961260,16.8062,134.12,134.07,16.8085]
[1719020961261,20.0,134.11,134.07,16.8085]
[1719020962363,21.4872,134.15,134.07,9.35]
[1719020962556,9.35,134.13,134.08,9.35]
[1719020962751,9.35,134.13,134.08,16.8079]
[1719020963662,16.8054,134.13,134.08,16.8079]
[1719020964548,7.456,134.12,134.07,7.4586]
[1719020964764,7.456,134.12,134.08,9.35]
[1719020965375,16.8057,134.13,134.08,9.35]
[1719020966670,16.8057,134.13,134.08,16.8081]
[1719020967172,16.8045,134.15,134.1,16.8068]
[1719020970076,78.3531,134.19,134.07,21.6505]
[1719020970077,18.6316,134.19,134.07,28.9807]
[1719020970270,20.0,134.18,134.13,9.35]
[1719020970460,19.5,134.18,134.13,9.35]
[1719020970668,36.303,134.18,134.13,16.8053]
[1719020970869,28.85,134.18,134.13,16.8053]
[1719020971061,36.3027,134.18,134.13,16.8053]
[1719020971867,18.6275,134.22,134.14,9.35]
[1719020972072,16.8024,134.19,134.14,16.8047]
[1719020972465,7.4526,134.18,134.14,9.35]
[1719020972866,18.6304,134.19,134.11,7.4561]
[1719020973068,9.35,134.17,134.12,9.35]
[1719020973266,7.454,134.16,134.12,9.35]
[1719020973662,16.804,134.16,134.11,16.8062]
[1719020973868,7.4533,134.17,134.12,7.4559]
[1719020974183,16.8038,134.16,134.11,16.8062]
[1719020974683,9.35,134.19,134.08,35.0998]
[1719020974983,16.8049,134.14,134.09,16.8073]
[1719020975177,9.35,134.14,134.09,16.8073]
[1719020975476,9.35,134.14,134.1,7.4569]
[1719020975682,20.0,134.18,134.15,7.4543]
[1719020975896,21.83599283,134.22,134.15,7.4539]
[1719020975897,7.4516,134.2,134.15,7.4539]
[1719020976139,29.35,134.19,134.15,7.4539]
[1719020976599,20.0,134.19,134.15,7.4539]
[1719020976773,20.0,134.19,134.16,7.4537]
[1719020977085,9.35,134.19,134.16,7.4537]
[1719020977266,36.8016,134.2,134.15,16.8042]
[1719020977690,20.0,134.2,134.13,15.0998]
[1719020977866,16.619296,134.25,134.16,18.6334]
[1719020978068,9.35,134.23,134.18,7.4524]
[1719020978275,20.0,134.22,134.18,7.4524]
[1719020979289,9.35,134.23,134.19,7.4519]
[1719020979581,9.35,134.23,134.19,16.8019]
[1719020979777,9.35,134.23,134.19,7.4519]
[1719020980575,16.619296,134.25,134.2,7.4513]
[1719020980773,0.865396,134.25,134.2,7.4513]
[1719020980979,9.35,134.23,134.2,7.4513]
[1719020981202,9.35,134.23,134.19,7.4519]
[1719020981373,8.314496,134.25,134.19,7.4519]
[1719020981574,27.4494,134.24,134.19,7.4519]
[1719020982096,7.4499,134.23,134.17,7.6229]
[1719020983181,7.4499,134.23,134.18,7.4526]
[1719020983501,27.4495,134.24,134.19,7.4521]
[1719020984102,20.0,134.24,134.19,7.4521]
[1719020984298,27.4497,134.24,134.19,7.4521]
[1719020990300,20.0,134.24,134.2,7.4514]
[1719020993097,27.4494,134.24,134.19,7.4519]
[1719020995312,27.4494,134.24,134.15,18.6355]
[1719020995313,20.0,134.24,134.15,18.6355]
[1719020995603,0.17,134.23,134.13,33.738]
[1719020995904,20.0,134.24,134.13,15.0998]
[1719020996111,20.865396,134.25,134.13,15.0998]
[1719020996295,7.4501,134.23,134.18,7.4523]
[1719020996496,20.0,134.22,134.18,7.4523]
[1719020997284,27.4506,134.22,134.17,7.4531]
[1719020998196,0.17,134.21,134.13,15.0998]
[1719020998508,7.4521,134.2,134.15,7.4543]
[1719020998708,27.4521,134.19,134.14,7.4546]
[1719020998891,7.4513,134.21,134.16,7.4536]
[1719020999092,27.4516,134.2,134.15,7.454]
[1719020999304,7.4516,134.2,134.15,7.454]
[1719020999481,20.0,134.19,134.16,7.4535]
[1719020999693,19.487596,134.25,134.14,41.2361]
[1719020999997,7.4501,134.23,134.18,7.4523]
[1719021000310,20.0,134.22,134.18,7.4523]
[1719021000913,7.4501,134.23,134.18,7.4523]
[1719021001207,7.4504,134.22,134.17,7.4529]
[1719021001418,7.4501,134.23,134.18,7.4526]
[1719021001793,7.4504,134.22,134.17,7.4529]
[1719021002192,7.4501,134.23,134.18,7.4526]
[1719021002614,7.4504,134.22,134.17,7.453]
[1719021003113,7.4516,134.2,134.15,7.624]
[1719021003294,7.4516,134.2,134.15,7.454]
[1719021003493,9.35,134.19,134.15,7.454]
[1719021003914,9.35,134.19,134.16,7.4535]
[1719021004110,9.35,134.2,134.17,7.4531]
[1719021004416,16.8012,134.21,134.16,7.4537]
[1719021004602,9.35,134.2,134.16,7.4537]
[1719021005914,7.4512,134.21,134.16,7.4537]
[1719021006143,9.35,134.2,134.17,7.4532]
[1719021006691,7.4512,134.21,134.17,7.4532]
[1719021006912,9.35,134.2,134.17,7.4532]
[1719021007290,7.4501,134.23,134.17,9.35]
[1719021007495,20.0,134.22,134.18,9.35]
[1719021007801,20.0,134.22,134.18,7.4524]
[1719021008205,29.35,134.22,134.18,7.4524]
[1719021009116,9.35,134.22,134.18,7.4524]
[1719021010597,19.487696,134.25,134.19,7.452]
[1719021010802,9.35,134.22,134.19,7.452]
[1719021011025,9.35,134.23,134.19,7.452]
[1719021012627,27.4495,134.24,134.19,7.452]
[1719021012808,9.35,134.23,134.19,7.452]
[1719021013122,16.7999,134.23,134.19,7.452]
[1719021013329,27.4496,134.24,134.19,7.452]
[1719021013641,9.35,134.23,134.19,7.452]
[1719021013827,36.7996,134.24,134.19,16.802]
[1719021017224,9.35,134.23,134.19,7.452]
[1719021017823,20.0,134.24,134.16,9.35]
[1719021018029,9.35,134.22,134.18,7.4524]
[1719021018217,9.35,134.21,134.13,33.7381]
[1719021018412,16.8012,134.21,134.16,16.8034]
[1719021019212,9.35,134.2,134.16,7.4534]
[1719021019413,16.8015,134.2,134.15,16.8041]
[1719021019807,16.8015,134.2,134.16,7.4537]
[1719021020207,9.35,134.2,134.16,7.4537]
[1719021020407,9.35,134.2,134.17,7.4532]
[1719021020819,9.35,134.21,134.17,7.4532]
[1719021021213,9.35,134.21,134.18,7.4526]
[1719021022231,9.35,134.22,134.18,7.4526]
[1719021022613,7.4496,134.24,134.19,7.4521]
[1719021022927,20.865396,134.25,134.21,7.4506]
[1719021023138,20.865396,134.25,134.2,9.35]
[1719021023309,9.35,134.24,134.21,7.4507]
[1719021023916,9.35,134.24,134.2,7.4513]
[1719021024118,28.314196,134.25,134.21,7.4509]
[1719021024319,9.35,134.24,134.2,7.4512]
[1719021025015,9.35,134.23,134.18,15.438]
[1719021025212,9.35,134.22,134.18,22.8903]
[1719021025937,7.45,134.23,134.18,22.8903]
[1719021026140,9.35,134.22,134.18,22.8903]
[1719021026434,9.35,134.22,134.19,7.452]
[1719021028615,7.4496,134.24,134.19,7.452]
[1719021028818,9.35,134.22,134.19,7.452]
[1719021030332,20.0,134.23,134.19,7.452]
[1719021030519,9.35,134.22,134.19,7.452]
[1719021030720,29.35,134.23,134.19,7.452]
[1719021030918,29.35,134.23,134.15,34.0734]
[1719021030919,16.8007,134.22,134.15,34.0734]
[1719021031119,9.35,134.21,134.16,9.35]
[1719021031432,9.35,134.21,134.17,7.4529]
[1719021032637,9.35,134.21,134.18,7.4526]
[1719021033448,9.35,134.22,134.19,7.4519]
[1719021033737,20.0,134.23,134.2,7.4515]
[1719021033941,9.35,134.22,134.2,7.4515]
[1719021034748,9.35,134.22,134.19,7.4518]
[1719021034914,20.0,134.23,134.19,7.4518]
[1719021034915,29.35,134.23,134.19,7.4518]
[1719021035935,20.0,134.23,134.18,18.6316]
[1719021036120,9.35,134.24,134.21,7.4508]
[1719021036315,20.0,134.23,134.21,7.4508]
[1719021037121,20.0,134.23,134.2,7.4512]
[1719021037325,20.0,134.23,134.19,9.35]
[1719021037531,28.314196,134.25,134.19,9.35]
[1719021037726,9.35,134.23,134.18,16.8023]
[1719021037930,9.35,134.23,134.19,7.452]
[1719021038615,16.7999,134.23,134.18,16.8023]
[1719021039220,16.7999,134.23,134.19,7.452]
[1719021040043,9.35,134.23,134.19,7.452]
[1719021040421,7.45,134.23,134.18,7.4524]
[1719021040627,9.35,134.22,134.18,7.4524]
[1719021041440,16.8005,134.22,134.17,7.4529]
[1719021041620,20.865396,134.25,134.16,9.35]
[1719021041621,9.35,134.21,134.16,9.35]
[1719021042128,9.35,134.21,134.17,7.4532]
[1719021044148,9.35,134.21,134.16,7.4537]
[1719021044351,9.35,134.19,134.13,18.6375]
[1719021044648,9.35,134.19,134.16,7.4537]
[1719021044847,7.4517,134.2,134.12,15.2103]
[1719021044848,9.35,134.18,134.15,7.4543]
[1719021045349,9.35,134.19,134.15,7.4543]
[1719021046036,9.35,134.19,134.14,9.35]
[1719021046037,9.35,134.19,134.16,7.4536]
[1719021050355,9.35,134.17,134.14,7.4546]
[1719021050947,9.35,134.17,134.15,7.4542]
[1719021051436,9.35,134.18,134.15,7.4542]
[1719021052435,22.3385,134.21,134.14,9.35]
[1719021052635,9.35,134.19,134.12,15.2103]
[1719021052859,29.7897,134.21,134.16,7.4535]
[1719021053159,27.4516,134.2,134.16,7.4535]
[1719021053335,9.35,134.18,134.16,7.4535]
[1719021053537,9.35,134.18,134.15,7.4541]
[1719021053841,9.35,134.18,134.12,24.5603]
[1719021054039,9.35,134.18,134.15,7.4542]
[1719021054638,20.0,134.2,134.15,9.35]
[1719021054844,7.45,134.23,134.18,7.4523]
[1719021055056,9.35,134.2,134.16,7.4535]
[1719021055253,9.35,134.19,134.17,7.4531]
[1719021055576,9.35,134.2,134.17,7.4531]
[1719021055745,9.35,134.19,134.16,7.4537]
[1719021055940,9.35,134.19,134.15,7.454]
[1719021056345,9.35,134.19,134.16,7.4536]
[1719021056547,9.35,134.19,134.12,33.85]
[1719021056752,7.4506,134.22,134.17,7.453]
[1719021056954,9.35,134.2,134.17,7.453]
[1719021057157,29.35,134.21,134.17,7.453]
[1719021058458,29.35,134.21,134.16,9.35]
[1719021058459,9.35,134.2,134.16,7.4535]
[1719021058860,9.35,134.18,134.14,7.4545]
[1719021060370,9.35,134.17,134.14,7.4545]
[1719021060868,16.1717,134.2,134.15,7.4543]
[1719021060869,9.35,134.18,134.15,7.4543]
[1719021063143,9.35,134.18,134.16,7.4537]
[1719021063347,27.4512,134.21,134.16,7.4537]
[1719021063569,9.35,134.19,134.16,7.4537]
[1719021065068,7.4516,134.2,134.15,7.4541]
[1719021065271,29.35,134.19,134.15,7.4541]
[1719021066264,9.35,134.18,134.15,7.4541]
[1719021067153,29.35,134.19,134.15,7.4541]
[1719021067683,9.35,134.18,134.15,7.4541]
[1719021067974,9.35,134.17,134.14,7.4547]
[1719021070264,26.1684,134.19,134.09,16.419]
[1719021070464,9.35,134.14,134.09,25.769]
[1719021070668,9.35,134.13,134.09,7.4571]
[1719021070872,9.35,134.13,134.1,7.4571]
[1719021071763,9.35,134.13,134.08,9.35]
[1719021071764,7.4539,134.16,134.11,7.4564]
[1719021071959,9.35,134.14,134.11,7.4564]
[1719021072985,9.35,134.14,134.1,7.4568]
[1719021073171,9.35,134.13,134.1,7.4568]
[1719021074485,9.35,134.14,134.11,7.4565]
[1719021080797,9.35,134.12,134.08,7.4581]
[1719021080961,9.35,134.09,134.07,7.4587]
[1719021081281,9.35,134.09,134.06,7.4591]
[1719021081981,9.35,134.08,134.06,7.4591]
[1719021082163,9.35,134.07,134.05,7.4597]
[1719021083684,7.4568,134.11,134.06,7.4593]
[1719021083983,9.35,134.08,134.05,7.4596]
[1719021085578,9.35,134.08,134.06,7.4592]
[1719021086492,9.35,134.08,134.05,7.4596]
[1719021087293,16.082,134.09,134.0,18.6563]
[1719021087601,16.082,134.09,134.02,7.4613]
[1719021087602,9.35,134.05,134.02,7.4613]
[1719021088290,9.35,134.05,134.03,7.4609]
[1719021088866,9.35,134.06,134.03,7.4609]
[1719021089391,9.35,134.05,134.03,7.4609]
[1719021090293,9.35,134.05,134.02,7.4613]
[1719021090494,9.35,134.05,134.01,7.4618]
[1719021090987,9.35,134.05,134.02,7.4614]
[1719021092391,20.0,134.07,133.98,35.1785]
[1719021092595,9.35,134.03,134.0,7.4625]
[1719021094691,9.35,134.03,134.01,7.4619]
[1719021096695,7.6295,134.06,134.01,7.4619]
[1719021096899,9.35,134.03,134.01,7.4619]
[1719021097903,20.0,134.05,134.01,7.4619]
[1719021098081,9.35,134.03,134.01,7.4619]
[1719021098482,20.0,134.05,133.99,18.6568]
[1719021098677,29.35,134.06,134.03,7.4606]
[1719021099601,29.35,134.06,134.02,7.4613]
[1719021099800,9.35,134.05,134.02,7.4613]
[1719021102500,20.0,134.06,134.02,7.4613]
[1719021102703,20.0,134.06,134.03,7.4609]
[1719021102909,9.35,134.05,134.03,7.4609]
[1719021103083,29.35,134.06,134.03,7.4609]
[1719021103283,20.0,134.06,134.04,7.4604]
[1719021103512,9.35,134.08,134.04,7.4604]
[1719021103803,20.0,134.07,134.04,7.4604]
[1719021106193,83.73869849,134.12,134.05,7.4596]
[1719021106397,9.35,134.08,134.04,7.4602]
[1719021106785,7.4577,134.09,134.04,7.4602]
[1719021107088,9.35,134.08,134.04,7.4602]
[1719021107291,38.6426,134.11,134.03,7.4607]
[1719021107490,9.35,134.07,134.03,7.4607]
[1719021110102,9.35,134.07,134.04,7.4604]
[1719021110704,9.35,134.05,134.01,7.4616]
[1719021111007,9.35,134.05,134.02,7.4615]
[1719021111186,9.35,134.04,134.02,7.4615]
[1719021111787,9.35,134.03,134.01,7.4619]
[1719021112183,21.6003,134.07,134.03,7.4606]
[1719021112414,9.35,134.05,134.03,7.4606]
[1719021114609,9.35,134.05,134.02,7.4613]
[1719021117322,9.35,134.05,134.01,7.4619]
[1719021117495,36.8094,134.06,134.01,16.8119]
[1719021118404,27.4594,134.06,134.01,16.8119]
[1719021118607,36.8094,134.06,134.01,16.8119]
[1719021118819,7.8071356,134.11,134.02,22.7876]
[1719021119124,7.4578,134.09,134.05,9.35]
[1719021119303,9.35,134.09,134.04,9.35]
[1719021119616,7.459,134.07,134.03,16.8109]
[1719021119993,16.8085,134.08,134.03,16.8109]
[1719021120191,9.35,134.08,134.04,7.4602]
[1719021120393,16.8079,134.09,134.04,7.4602]
[1719021121431,16.8079,134.09,134.04,16.8102]
[1719021121713,9.35,134.09,134.05,7.4597]
[1719021121896,16.8072,134.1,134.05,16.8097]
[1719021122337,18.6404,134.12,134.04,16.8101]
[1719021122338,16.8078,134.09,134.04,16.8101]
[1719021123726,9.35,134.06,134.02,16.2305]
[1719021123931,9.35,134.06,134.02,23.6918]
[1719021124232,9.35,134.06,134.03,7.4608]
[1719021124749,9.35,134.06,134.02,23.6917]
[1719021124917,16.8093,134.06,134.02,7.4612]
[1719021125109,9.35,134.04,134.0,7.4624]
[1719021125332,9.35,134.04,134.01,7.4618]
[1719021126327,9.35,134.05,134.01,7.4618]
[1719021126825,9.35,134.06,134.02,7.4615]
[1719021127035,21.4776,134.08,134.04,7.46]
[1719021127214,24.4851,134.08,134.04,7.46]
[1719021127528,9.35,134.08,134.05,7.4598]
[1719021128028,7.4573,134.1,134.05,7.4598]
[1719021128233,29.35,134.09,134.05,7.4598]
[1719021130017,6.3425,134.14,134.08,7.4582]
[1719021130244,7.4556,134.13,134.08,7.4582]
[1719021130534,6.3425,134.14,134.09,7.4576]
[1719021130535,13.7976,134.14,134.09,7.4576]
[1719021130748,22.5891,134.16,134.11,7.4564]
[1719021130960,9.35,134.15,134.11,7.4564]
[1719021131119,16.8043,134.15,134.11,7.4564]
[1719021131320,20.0,134.14,134.11,7.4564]
[1719021131846,20.0,134.15,134.11,7.4564]
[1719021132041,16.8044,134.15,134.11,7.4564]
[1719021132648,16.8044,134.15,134.1,16.8069]
[1719021134936,7.4549,134.14,134.1,9.35]
[1719021135323,16.8049,134.14,134.09,16.8075]
[1719021136519,16.8045,134.15,134.1,16.807]
[1719021138337,16.8045,134.15,134.1,7.457]
[1719021139063,16.8045,134.15,134.11,7.4564]
[1719021139360,7.4534,134.17,134.12,16.8057]
[1719021139564,7.4534,134.17,134.13,7.4553]
[1719021139565,9.35,134.17,134.13,7.4553]
[1719021139748,16.8033,134.17,134.13,7.4553]
[1719021140060,9.35,134.17,134.13,7.4553]
[1719021141146,16.8029,134.18,134.13,16.8053]
[1719021142241,9.35,134.17,134.13,7.4553]
[1719021144835,9.35,134.17,134.12,16.8057]
[1719021145165,9.35,134.15,134.11,7.4562]
[1719021145458,9.35,134.14,134.1,22.6562]
[1719021147654,16.8058,134.13,134.08,7.4577]
[1719021147845,9.35,134.12,134.08,7.4577]
[1719021148794,9.35,134.12,134.09,7.4575]
[1719021150831,9.35,134.12,134.08,7.458]
[1719021151145,9.35,134.12,134.09,7.4576]
[1719021151359,0.17,134.15,134.1,7.4569]
[1719021151559,9.35,134.13,134.08,9.35]
[1719021151739,7.6243,134.15,134.11,7.4565]
[1719021151938,13.5302,134.17,134.12,7.4559]
[1719021152138,29.35,134.16,134.12,7.4559]
[1719021152763,29.35,134.16,134.13,7.4554]
[1719021152968,9.35,134.16,134.13,7.4554]
[1719021153350,0.17,134.18,134.13,7.4554]
[1719021153554,27.4528,134.18,134.13,7.4554]
[1719021153987,27.4528,134.18,134.12,16.4643]
[1719021153988,20.0,134.18,134.12,16.4643]
[1719021154282,7.4516,134.2,134.16,7.4537]
[1719021154482,36.8011,134.21,134.16,16.8037]
[1719021155277,36.8011,134.21,134.16,7.4537]
[1719021155483,27.4511,134.21,134.16,7.4537]
[1719021155677,0.865396,134.25,134.18,9.35]
[1719021155855,9.35,134.23,134.19,7.4518]
[1719021156252,20.865396,134.25,134.21,7.4508]
[1719021156455,10.215396,134.25,134.2,16.8013]
[1719021156661,8.314196,134.25,134.2,16.8013]
[1719021157170,10.215396,134.25,134.2,16.8013]
[1719021158253,27.4497,134.24,134.2,9.35]
[1719021158475,36.7997,134.24,134.19,16.8019]
[1719021158655,36.7997,134.24,134.19,9.35]
[1719021159369,27.4497,134.24,134.19,7.452]
[1719021161095,7.4499,134.23,134.18,23.9167]
[1719021162187,7.4499,134.23,134.19,7.452]
[1719021162486,7.4499,134.23,134.18,7.4526]
[1719021162487,7.45,134.23,134.18,7.4526]
[1719021162693,20.17,134.24,134.16,6.4719]
[1719021162889,7.4507,134.22,134.17,7.4531]
[1719021165090,7.451,134.21,134.16,7.4535]
[1719021167682,20.17,134.24,134.15,33.8118]
[1719021167989,20.0,134.24,134.2,7.4511]
[1719021169912,27.4493,134.24,134.2,7.4511]
[1719021170976,7.4502,134.23,134.16,0.17]
[1719021171784,20.0,134.24,134.19,7.452]
[1719021171785,27.4496,134.24,134.19,7.452]
[1719021172594,7.4509,134.22,134.17,7.4528]
[1719021174306,7.451,134.21,134.16,7.4536]
[1719021174602,27.451,134.21,134.16,7.4536]
[1719021174781,7.4516,134.2,134.15,7.454]
[1719021174988,7.4516,134.2,134.16,7.4537]
[1719021175301,7.6212,134.21,134.16,7.4537]
[1719021175499,20.17,134.2,134.16,7.4537]
[1719021178003,20.17,134.2,134.13,18.6383]
[1719021178004,27.6215,134.2,134.15,7.4541]
[1719021179602,9.35,134.19,134.15,7.4541]
[1719021180379,16.8021,134.19,134.14,16.8047]
[1719021181096,9.35,134.18,134.16,7.4534]
[1719021181305,24.25307099,134.25,134.17,29.52]
[1719021181509,9.35,134.24,134.21,7.4505]
[1719021181801,9.35,134.24,134.17,20.17]
[1719021181802,9.35,134.22,134.17,20.0]
[1719021181998,9.35,134.22,134.15,39.9746]
[1719021181999,9.35,134.22,134.18,7.4523]
[1719021182401,9.35,134.22,134.19,7.4519]
[1719021183201,9.35,134.23,134.2,7.4514]
[1719021187513,16.455396,134.25,134.14,18.6359]
[1719021187804,9.35,134.18,134.15,7.4541]
[1719021188602,7.4511,134.21,134.16,7.4536]
[1719021188919,9.35,134.18,134.16,7.4536]
[1719021189297,20.17,134.2,134.16,7.4536]
[1719021190213,27.6216,134.2,134.16,7.4536]
[1719021190616,7.4522,134.19,134.12,34.2148]
[1719021190797,7.4522,134.19,134.14,7.4544]
[1719021191518,7.4522,134.19,134.15,7.4541]
[1719021192114,27.6217,134.2,134.15,7.4541]
[1719021193109,27.6217,134.2,134.16,7.4537]
[1719021193427,79.6193,134.24,134.12,75.2633]
[1719021193428,7.45,134.23,134.12,75.2633]
[1719021193599,20.17,134.22,134.18,7.4524]
[1719021193824,20.17,134.22,134.16,18.6332]
[1719021193825,0.17,134.22,134.16,18.6332]
[1719021194102,7.4502,134.23,134.16,18.6332]
[1719021194300,7.4502,134.23,134.18,7.4524]
[1719021194835,6.5593,134.24,134.15,7.454]
[1719021194997,7.4524,134.19,134.14,7.4547]
[1719021195503,7.4527,134.18,134.13,7.4552]
[1719021195917,7.4527,134.18,134.14,7.4548]
[1719021197715,7.4523,134.19,134.14,7.4548]
[1719021200122,7.4523,134.19,134.15,7.4543]
[1719021200917,26.8993,134.18,134.09,18.6437]
[1719021201107,34.3523,134.18,134.13,7.4554]
[1719021201327,34.1823,134.18,134.1,18.6416]
[1719021201612,34.1823,134.18,134.14,7.4548]
[1719021203330,26.7293,134.18,134.14,7.4548]
[1719021206425,34.1819,134.18,134.14,7.4548]
[1719021207432,34.1819,134.18,134.13,7.4552]
[1719021207654,7.4548,134.15,134.1,7.4566]
[1719021207827,7.4539,134.16,134.11,7.4563]
[1719021208654,7.4533,134.17,134.09,18.6431]
[1719021208936,20.0,134.16,134.12,7.4557]
[1719021210315,7.4544,134.15,134.11,7.4564]
[1719021210515,27.4541,134.16,134.11,7.4564]
[1719021211438,9.36,134.14,134.12,7.4559]
[1719021211933,9.36,134.15,134.12,7.4559]
[1719021213527,9.36,134.15,134.11,7.4564]
[1719021213930,9.36,134.14,134.11,7.4564]
[1719021216740,29.36,134.16,134.14,7.4544]
[1719021216941,9.36,134.16,134.15,7.454]
[1719021217132,9.36,134.16,134.12,7.4557]
[1719021217341,9.36,134.15,134.12,7.4557]
[1719021221843,9.36,134.15,134.13,7.4552]
[1719021223332,9.36,134.15,134.1,18.6423]
[1719021223530,9.36,134.15,134.13,7.4553]
[1719021224143,14.012,134.18,134.14,7.4548]
[1719021224334,9.36,134.16,134.14,7.4548]